[Event "Titled Tuesday Blitz November 15 Late 2022"]
[White "Girsh, Daniel"]
[Black "Grot, Blazej"]
[WhiteFideId "30949190"]
[BlackFideId "21835845"]
[WhiteElo "2075"]
[BlackElo "1822"]
[Result "0-1"]
[Round "04"]
[TimeControl "180+1"]
[Date "2022.11.16"]
[WhiteClock "0:00:32"]
[BlackClock "0:00:15"]

1. e4 {[%clk 0:03:00]}  d6 {[%clk 0:02:59]} 2. d4 {[%clk 0:03:00]}  Nf6 {[%clk 0:02:59]} 3. Nc3 {[%clk 0:03:01]}  c6 {[%clk 0:02:59]} 4. f4 {[%clk 0:02:59]}  Qa5 {[%clk 0:02:58]} 5. Bd3 {[%clk 0:02:58]}  e5 {[%clk 0:02:58]} 6. fxe5 {[%clk 0:02:56]}  dxe5 {[%clk 0:02:58]} 7. dxe5 {[%clk 0:02:56]}  Ng4 {[%clk 0:02:57]} 8. Nf3 {[%clk 0:02:57]}  Nd7 {[%clk 0:02:54]} 9. Qe2 {[%clk 0:02:55]}  Bc5 {[%clk 0:02:45]} 10. Bd2 {[%clk 0:02:54]}  Ndxe5 {[%clk 0:02:43]} 11. O-O-O {[%clk 0:02:51]}  Nxd3+ {[%clk 0:02:17]} 12. cxd3 {[%clk 0:02:48]}  Nf2 {[%clk 0:02:09]} 13. d4 {[%clk 0:02:23]}  Nxd1 {[%clk 0:02:08]} 14. Rxd1 {[%clk 0:02:23]}  Bb4 {[%clk 0:02:06]} 15. a3 {[%clk 0:02:21]}  Bxc3 {[%clk 0:02:03]} 16. Bxc3 {[%clk 0:02:22]}  Qh5 {[%clk 0:02:03]} 17. d5 {[%clk 0:02:19]}  O-O {[%clk 0:01:53]} 18. d6 {[%clk 0:02:15]}  Bg4 {[%clk 0:01:53]} 19. Kb1 {[%clk 0:02:03]}  Rad8 {[%clk 0:01:46]} 20. h3 {[%clk 0:02:00]}  Bxf3 {[%clk 0:01:40]} 21. gxf3 {[%clk 0:02:01]}  Qxh3 {[%clk 0:01:37]} 22. e5 {[%clk 0:02:01]}  Rfe8 {[%clk 0:01:28]} 23. Ka1 {[%clk 0:01:54]}  Qe6 {[%clk 0:01:22]} 24. f4 {[%clk 0:01:53]}  g6 {[%clk 0:01:21]} 25. Rh1 {[%clk 0:01:51]}  Qf5 {[%clk 0:01:16]} 26. Rh6 {[%clk 0:01:44]}  Qxf4 {[%clk 0:01:11]} 27. Rh3 {[%clk 0:01:42]}  Rxd6 {[%clk 0:01:04]} 28. Rf3 {[%clk 0:01:21]}  Qc1+ {[%clk 0:01:03]} 29. Ka2 {[%clk 0:01:21]}  Rde6 {[%clk 0:00:52]} 30. Qf2 {[%clk 0:01:12]}  R8e7 {[%clk 0:00:45]} 31. Qh4 {[%clk 0:01:12]}  Qd1 {[%clk 0:00:34]} 32. Rh3 {[%clk 0:01:11]}  Qd5+ {[%clk 0:00:33]} 33. Ka1 {[%clk 0:01:09]}  h5 {[%clk 0:00:28]} 34. Rg3 {[%clk 0:01:08]}  Rxe5 {[%clk 0:00:25]} 35. Bxe5 {[%clk 0:01:05]}  Qxe5 {[%clk 0:00:24]} 36. Ka2 {[%clk 0:00:59]}  Kg7 {[%clk 0:00:24]} 37. Rd3 {[%clk 0:00:54]}  Qe6+ {[%clk 0:00:24]} 38. Rb3 {[%clk 0:00:50]}  b5 {[%clk 0:00:19]} 39. Qg3 {[%clk 0:00:40]}  a5 {[%clk 0:00:18]} 40. Qc3+ {[%clk 0:00:40]}  Kh7 {[%clk 0:00:16]} 41. Qxa5 {[%clk 0:00:41]}  Rd7 {[%clk 0:00:15]} 42. Qc3 {[%clk 0:00:40]}  h4 {[%clk 0:00:14]} 43. Qf3 {[%clk 0:00:33]}  h3 {[%clk 0:00:10]} 44. Qxh3+ {[%clk 0:00:32]}  Qxh3 {[%clk 0:00:11]} 45. Rxh3+ {[%clk 0:00:33]}  Kg7 {[%clk 0:00:11]} 46. Rc3 {[%clk 0:00:34]}  Rd6 {[%clk 0:00:11]} 47. Kb3 {[%clk 0:00:34]}  g5 {[%clk 0:00:11]} 48. Kb4 {[%clk 0:00:35]}  f5 {[%clk 0:00:11]} 49. Kc5 {[%clk 0:00:36]}  Rg6 {[%clk 0:00:10]} 50. Rf3 {[%clk 0:00:35]}  Kf6 {[%clk 0:00:08]} 51. Kd4 {[%clk 0:00:35]}  g4 {[%clk 0:00:09]} 52. Rf1 {[%clk 0:00:35]}  g3 {[%clk 0:00:08]} 53. Ke3 {[%clk 0:00:35]}  Ke5 {[%clk 0:00:08]} 54. Kf3 {[%clk 0:00:34]}  g2 {[%clk 0:00:07]} 55. Re1+ {[%clk 0:00:33]}  Kd4 {[%clk 0:00:07]} 56. Rd1+ {[%clk 0:00:34]}  Kc4 {[%clk 0:00:07]} 57. b3+ {[%clk 0:00:29]}  Kxb3 {[%clk 0:00:08]} 58. Rd3+ {[%clk 0:00:27]}  Kc2 {[%clk 0:00:07]} 59. Rd6 {[%clk 0:00:25]}  Rxd6 {[%clk 0:00:07]} 60. Kxg2 {[%clk 0:00:25]}  Rd3 {[%clk 0:00:07]} 61. Kf2 {[%clk 0:00:25]}  Rxa3 {[%clk 0:00:08]} 62. Ke2 {[%clk 0:00:26]}  Rc3 {[%clk 0:00:08]} 63. Kf2 {[%clk 0:00:26]}  b4 {[%clk 0:00:09]} 64. Ke2 {[%clk 0:00:27]}  Rd3 {[%clk 0:00:09]} 65. Kf2 {[%clk 0:00:28]}  Kd2 {[%clk 0:00:10]} 66. Kg2 {[%clk 0:00:28]}  Re3 {[%clk 0:00:10]} 67. Kf2 {[%clk 0:00:29]}  Kd3 {[%clk 0:00:10]} 68. Kg2 {[%clk 0:00:30]}  b3 {[%clk 0:00:11]} 69. Kf2 {[%clk 0:00:31]}  b2 {[%clk 0:00:11]} 70. Kg2 {[%clk 0:00:32]}  b1=Q {[%clk 0:00:12]} 71. Kf2 {[%clk 0:00:33]}  Qc2+ {[%clk 0:00:12]} 72. Kf1 {[%clk 0:00:32]}  Qd1+ {[%clk 0:00:13]} 73. Kf2 {[%clk 0:00:32]}  Qd2+ {[%clk 0:00:14]} 74. Kf1 {[%clk 0:00:32]}  Re1# {[%clk 0:00:15]} 0-1


[Site "https://www.chess.com"]

[Event "Titled Tuesday Blitz November 15 Late 2022"]
[White "Gokerkan, Cem Kaan"]
[Black "Adury, Anant"]
[WhiteFideId "6336760"]
[BlackFideId "30964687"]
[WhiteElo "2365"]
[BlackElo "2264"]
[Result "1-0"]
[Round "04"]
[TimeControl "180+1"]
[Date "2022.11.15"]
[WhiteClock "0:00:19"]
[BlackClock "0:00:02"]

1. c4 {[%clk 0:03:00]}  d6 {[%clk 0:02:54]} 2. d4 {[%clk 0:03:00]}  Nf6 {[%clk 0:02:52]} 3. Nc3 {[%clk 0:03:00]}  e5 {[%clk 0:02:52]} 4. Nf3 {[%clk 0:03:00]}  Nc6 {[%clk 0:02:52]} 5. d5 {[%clk 0:02:59]}  Ne7 {[%clk 0:02:52]} 6. e4 {[%clk 0:02:59]}  Ng6 {[%clk 0:02:53]} 7. g3 {[%clk 0:02:45]}  Be7 {[%clk 0:02:51]} 8. h4 {[%clk 0:02:45]}  Bg4 {[%clk 0:02:49]} 9. Be2 {[%clk 0:02:45]}  h5 {[%clk 0:02:49]} 10. Be3 {[%clk 0:02:36]}  a5 {[%clk 0:02:49]} 11. Ng5 {[%clk 0:02:26]}  Bxe2 {[%clk 0:02:47]} 12. Qxe2 {[%clk 0:02:27]}  Ng4 {[%clk 0:02:42]} 13. Bd2 {[%clk 0:02:26]}  Qd7 {[%clk 0:02:32]} 14. O-O-O {[%clk 0:02:23]}  Nf6 {[%clk 0:02:20]} 15. Kb1 {[%clk 0:02:20]}  Nh7 {[%clk 0:02:18]} 16. Nxh7 {[%clk 0:02:12]}  Rxh7 {[%clk 0:02:19]} 17. Rc1 {[%clk 0:01:50]}  Qg4 {[%clk 0:01:50]} 18. Qd3 {[%clk 0:01:36]}  Qd7 {[%clk 0:01:42]} 19. Be3 {[%clk 0:01:32]}  b6 {[%clk 0:01:35]} 20. Nb5 {[%clk 0:01:27]}  Bd8 {[%clk 0:01:27]} 21. Rce1 {[%clk 0:01:22]}  Ne7 {[%clk 0:01:25]} 22. f4 {[%clk 0:01:20]}  Ng6 {[%clk 0:01:15]} 23. f5 {[%clk 0:01:16]}  Ne7 {[%clk 0:01:10]} 24. a3 {[%clk 0:01:15]}  Nc8 {[%clk 0:01:03]} 25. Ref1 {[%clk 0:01:13]}  Na7 {[%clk 0:01:03]} 26. Nc3 {[%clk 0:01:13]}  Bf6 {[%clk 0:01:01]} 27. Qe2 {[%clk 0:01:11]}  Rh8 {[%clk 0:01:01]} 28. Rhg1 {[%clk 0:01:10]}  Ke7 {[%clk 0:01:01]} 29. Bg5 {[%clk 0:01:08]}  Rhb8 {[%clk 0:01:00]} 30. a4 {[%clk 0:01:04]}  Rh8 {[%clk 0:00:57]} 31. g4 {[%clk 0:01:00]}  hxg4 {[%clk 0:00:56]} 32. Qxg4 {[%clk 0:01:01]}  Rh7 {[%clk 0:00:25]} 33. Rg2 {[%clk 0:01:00]}  Rah8 {[%clk 0:00:26]} 34. Rh1 {[%clk 0:00:52]}  Rh5 {[%clk 0:00:25]} 35. Rhg1 {[%clk 0:00:43]}  Qe8 {[%clk 0:00:23]} 36. Qd1 {[%clk 0:00:41]}  Qg8 {[%clk 0:00:22]} 37. Qb3 {[%clk 0:00:41]}  Qe8 {[%clk 0:00:15]} 38. Qa3 {[%clk 0:00:40]}  Qd7 {[%clk 0:00:13]} 39. Rg3 {[%clk 0:00:37]}  Qe8 {[%clk 0:00:10]} 40. b4 {[%clk 0:00:32]}  axb4 {[%clk 0:00:08]} 41. Qxb4 {[%clk 0:00:33]}  Rxh4 {[%clk 0:00:08]} 42. Bxh4 {[%clk 0:00:33]}  Rxh4 {[%clk 0:00:09]} 43. a5 {[%clk 0:00:32]}  Qb8 {[%clk 0:00:09]} 44. axb6 {[%clk 0:00:31]}  Nc8 {[%clk 0:00:08]} 45. c5 {[%clk 0:00:27]}  cxb6 {[%clk 0:00:07]} 46. c6 {[%clk 0:00:26]}  Qc7 {[%clk 0:00:04]} 47. Nb5 {[%clk 0:00:26]}  Qb8 {[%clk 0:00:04]} 48. Ra3 {[%clk 0:00:23]}  Rh2 {[%clk 0:00:02]} 49. Qa4 {[%clk 0:00:19]} 1-0


[Site "https://www.chess.com"]

[Event "Titled Tuesday Blitz November 15 Late 2022"]
[White "Gonzalez, Francisco Silva"]
[Black "Mirzoev, Azer"]
[WhiteFideId "1512285"]
[BlackFideId "13400304"]
[WhiteElo "2159"]
[BlackElo "2525"]
[Result "0-1"]
[Round "04"]
[TimeControl "180+1"]
[Date "2022.11.16"]
[WhiteClock "0:00:13"]
[BlackClock "0:00:10"]

1. d4 {[%clk 0:02:56]}  d5 {[%clk 0:02:59]} 2. c4 {[%clk 0:02:55]}  e6 {[%clk 0:02:59]} 3. Nc3 {[%clk 0:02:54]}  c6 {[%clk 0:03:00]} 4. e3 {[%clk 0:02:53]}  f5 {[%clk 0:02:58]} 5. Qc2 {[%clk 0:02:54]}  Nf6 {[%clk 0:02:58]} 6. Bd3 {[%clk 0:02:53]}  Bd6 {[%clk 0:02:48]} 7. Nge2 {[%clk 0:02:53]}  O-O {[%clk 0:02:46]} 8. f3 {[%clk 0:02:53]}  Na6 {[%clk 0:02:45]} 9. a3 {[%clk 0:02:52]}  Nc7 {[%clk 0:02:42]} 10. O-O {[%clk 0:02:51]}  Kh8 {[%clk 0:02:36]} 11. Bd2 {[%clk 0:02:51]}  dxc4 {[%clk 0:02:35]} 12. Bxc4 {[%clk 0:02:50]}  e5 {[%clk 0:02:35]} 13. Ba2 {[%clk 0:02:46]}  exd4 {[%clk 0:02:33]} 14. Nxd4 {[%clk 0:02:45]}  Nh5 {[%clk 0:02:25]} 15. Be1 {[%clk 0:02:44]}  Qe7 {[%clk 0:02:23]} 16. Bf2 {[%clk 0:02:44]}  Bd7 {[%clk 0:02:21]} 17. Rae1 {[%clk 0:02:41]}  Rae8 {[%clk 0:02:15]} 18. Re2 {[%clk 0:02:41]}  Qe5 {[%clk 0:02:13]} 19. g3 {[%clk 0:02:39]}  c5 {[%clk 0:02:04]} 20. f4 {[%clk 0:02:18]}  Qe7 {[%clk 0:02:03]} 21. Nb3 {[%clk 0:02:17]}  Nf6 {[%clk 0:02:01]} 22. Rd1 {[%clk 0:02:15]}  Bc8 {[%clk 0:01:52]} 23. Red2 {[%clk 0:02:14]}  Rd8 {[%clk 0:01:52]} 24. Na5 {[%clk 0:02:08]}  Ng4 {[%clk 0:01:27]} 25. Nc4 {[%clk 0:02:07]}  Rf6 {[%clk 0:01:26]} 26. h3 {[%clk 0:02:07]}  Nxf2 {[%clk 0:01:25]} 27. Kxf2 {[%clk 0:02:07]}  b5 {[%clk 0:01:16]} 28. Nxd6 {[%clk 0:02:06]}  Rfxd6 {[%clk 0:01:17]} 29. Rxd6 {[%clk 0:02:03]}  Rxd6 {[%clk 0:01:17]} 30. Rxd6 {[%clk 0:01:58]}  Qxd6 {[%clk 0:01:17]} 31. Qd1 {[%clk 0:01:51]}  Qxd1 {[%clk 0:01:17]} 32. Nxd1 {[%clk 0:01:51]}  g6 {[%clk 0:01:18]} 33. Nc3 {[%clk 0:01:48]}  Kg7 {[%clk 0:01:15]} 34. Nd5 {[%clk 0:01:43]}  Nxd5 {[%clk 0:01:13]} 35. Bxd5 {[%clk 0:01:42]}  a5 {[%clk 0:01:09]} 36. Ke2 {[%clk 0:01:40]}  Kf6 {[%clk 0:01:08]} 37. Kd3 {[%clk 0:01:35]}  Ke7 {[%clk 0:01:06]} 38. Bc6 {[%clk 0:01:32]}  Ba6 {[%clk 0:01:03]} 39. Kc3 {[%clk 0:01:29]}  b4+ {[%clk 0:01:02]} 40. Kd2 {[%clk 0:01:29]}  Kd6 {[%clk 0:00:55]} 41. Be8 {[%clk 0:01:27]}  Bc8 {[%clk 0:00:51]} 42. Bb5 {[%clk 0:01:23]}  Be6 {[%clk 0:00:50]} 43. Kd3 {[%clk 0:01:22]}  Bd5 {[%clk 0:00:48]} 44. g4 {[%clk 0:01:21]}  Bg2 {[%clk 0:00:36]} 45. gxf5 {[%clk 0:01:20]}  gxf5 {[%clk 0:00:36]} 46. Be8 {[%clk 0:01:06]}  Bf1+ {[%clk 0:00:35]} 47. Kd2 {[%clk 0:01:04]}  Bxh3 {[%clk 0:00:35]} 48. axb4 {[%clk 0:01:05]}  cxb4 {[%clk 0:00:34]} 49. Kd3 {[%clk 0:01:05]}  Bg2 {[%clk 0:00:32]} 50. Kd4 {[%clk 0:01:05]}  h6 {[%clk 0:00:31]} 51. Bg6 {[%clk 0:00:56]}  Bh3 {[%clk 0:00:30]} 52. Be8 {[%clk 0:00:55]}  Bg4 {[%clk 0:00:27]} 53. e4 {[%clk 0:00:54]}  fxe4 {[%clk 0:00:27]} 54. Kxe4 {[%clk 0:00:55]}  Bd7 {[%clk 0:00:24]} 55. Bf7 {[%clk 0:00:54]}  Be6 {[%clk 0:00:21]} 56. Be8 {[%clk 0:00:54]}  Bd7 {[%clk 0:00:21]} 57. Bf7 {[%clk 0:00:53]}  a4 {[%clk 0:00:21]} 58. f5 {[%clk 0:00:53]}  a3 {[%clk 0:00:19]} 59. bxa3 {[%clk 0:00:52]}  bxa3 {[%clk 0:00:20]} 60. Bb3 {[%clk 0:00:52]}  Bc6+ {[%clk 0:00:19]} 61. Kd4 {[%clk 0:00:51]}  Ba4 {[%clk 0:00:19]} 62. Ba2 {[%clk 0:00:49]}  h5 {[%clk 0:00:19]} 63. Ke4 {[%clk 0:00:47]}  Be8 {[%clk 0:00:17]} 64. Kf4 {[%clk 0:00:46]}  Ke7 {[%clk 0:00:16]} 65. Kg5 {[%clk 0:00:36]}  Bf7 {[%clk 0:00:16]} 66. f6+ {[%clk 0:00:35]}  Kf8 {[%clk 0:00:14]} 67. Bb1 {[%clk 0:00:36]}  Ke8 {[%clk 0:00:13]} 68. Kh4 {[%clk 0:00:34]}  Kd8 {[%clk 0:00:13]} 69. Kg5 {[%clk 0:00:34]}  Kd7 {[%clk 0:00:13]} 70. Kf5 {[%clk 0:00:29]}  Kd6 {[%clk 0:00:12]} 71. Kg5 {[%clk 0:00:24]}  Ke5 {[%clk 0:00:12]} 72. Bg6 {[%clk 0:00:18]}  a2 {[%clk 0:00:09]} 73. Bxf7 {[%clk 0:00:17]}  a1=Q {[%clk 0:00:09]} 74. Bxh5 {[%clk 0:00:18]}  Qg1+ {[%clk 0:00:08]} 75. Kh4 {[%clk 0:00:15]}  Kxf6 {[%clk 0:00:08]} 76. Kh3 {[%clk 0:00:14]}  Qg5 {[%clk 0:00:08]} 77. Bg4 {[%clk 0:00:14]}  Ke5 {[%clk 0:00:08]} 78. Kg3 {[%clk 0:00:15]}  Kd4 {[%clk 0:00:09]} 79. Kf3 {[%clk 0:00:15]}  Kc3 {[%clk 0:00:09]} 80. Bh3 {[%clk 0:00:14]}  Kd2 {[%clk 0:00:10]} 81. Bf1 {[%clk 0:00:14]}  Qe3+ {[%clk 0:00:10]} 82. Kg2 {[%clk 0:00:14]}  Ke1 {[%clk 0:00:09]} 83. Bb5 {[%clk 0:00:13]}  Qg5+ {[%clk 0:00:09]} 84. Kh1 {[%clk 0:00:13]}  Qxb5 {[%clk 0:00:10]} 85. Kg2 {[%clk 0:00:13]}  Qf5 {[%clk 0:00:10]} 86. Kh1 {[%clk 0:00:13]}  Kf2 {[%clk 0:00:10]} 0-1


[Site "https://www.chess.com"]

[Event "Titled Tuesday Blitz November 15 Late 2022"]
[White "Goroshkov, Maksym"]
[Black "Freile Martin, Javier"]
[WhiteFideId "14142716"]
[BlackFideId "3600165"]
[WhiteElo "2257"]
[BlackElo "2332"]
[Result "1-0"]
[Round "04"]
[TimeControl "180+1"]
[Date "2022.11.16"]
[WhiteClock "0:01:00"]
[BlackClock "0:00:32"]

1. e4 {[%clk 0:02:59]}  c5 {[%clk 0:02:59]} 2. d4 {[%clk 0:03:00]}  cxd4 {[%clk 0:02:58]} 3. c3 {[%clk 0:03:01]}  d3 {[%clk 0:02:58]} 4. Bxd3 {[%clk 0:03:00]}  d6 {[%clk 0:02:59]} 5. Bc4 {[%clk 0:03:00]}  Nf6 {[%clk 0:02:58]} 6. e5 {[%clk 0:03:01]}  d5 {[%clk 0:02:40]} 7. Bb5+ {[%clk 0:02:45]}  Bd7 {[%clk 0:02:25]} 8. Be2 {[%clk 0:02:37]}  Ng8 {[%clk 0:02:15]} 9. Qxd5 {[%clk 0:02:37]}  e6 {[%clk 0:02:13]} 10. Qd1 {[%clk 0:02:36]}  Qc7 {[%clk 0:02:11]} 11. Nf3 {[%clk 0:02:36]}  Bc6 {[%clk 0:02:09]} 12. O-O {[%clk 0:02:35]}  Nd7 {[%clk 0:02:09]} 13. Bf4 {[%clk 0:02:33]}  Ne7 {[%clk 0:02:09]} 14. Na3 {[%clk 0:02:30]}  a6 {[%clk 0:02:08]} 15. Nc4 {[%clk 0:02:29]}  Ng6 {[%clk 0:01:41]} 16. Bg3 {[%clk 0:02:23]}  Bxf3 {[%clk 0:01:35]} 17. gxf3 {[%clk 0:02:24]}  Ndxe5 {[%clk 0:01:28]} 18. Nxe5 {[%clk 0:02:17]}  Nxe5 {[%clk 0:01:27]} 19. f4 {[%clk 0:02:02]}  Nc6 {[%clk 0:01:20]} 20. f5 {[%clk 0:02:01]}  e5 {[%clk 0:01:20]} 21. Bc4 {[%clk 0:01:45]}  Be7 {[%clk 0:01:19]} 22. Qh5 {[%clk 0:01:40]}  O-O {[%clk 0:01:17]} 23. Rad1 {[%clk 0:01:37]}  Bf6 {[%clk 0:01:16]} 24. Bd5 {[%clk 0:01:28]}  Rad8 {[%clk 0:01:13]} 25. Bh4 {[%clk 0:01:25]}  Qe7 {[%clk 0:01:06]} 26. Bg3 {[%clk 0:01:20]}  Rd6 {[%clk 0:00:59]} 27. Rfe1 {[%clk 0:01:15]}  Rfd8 {[%clk 0:00:58]} 28. c4 {[%clk 0:01:15]}  Nd4 {[%clk 0:00:56]} 29. Rxd4 {[%clk 0:01:13]}  b5 {[%clk 0:00:47]} 30. b3 {[%clk 0:01:11]}  bxc4 {[%clk 0:00:43]} 31. bxc4 {[%clk 0:01:10]}  Qa7 {[%clk 0:00:42]} 32. Bxe5 {[%clk 0:00:59]}  Bxe5 {[%clk 0:00:40]} 33. Rxe5 {[%clk 0:01:00]}  Qxd4 {[%clk 0:00:35]} 34. Qxf7+ {[%clk 0:01:00]}  Kh8 {[%clk 0:00:35]} 35. Re8+ {[%clk 0:01:00]}  Rxe8 {[%clk 0:00:32]} 36. Qxe8# {[%clk 0:01:00]} 1-0


[Site "https://www.chess.com"]

[Event "Titled Tuesday Blitz November 15 Late 2022"]
[White "Guz, Ari"]
[Black "Kaplan, Avi Harrison"]
[WhiteFideId "2825759"]
[BlackFideId "30934559"]
[WhiteElo "2205"]
[BlackElo "1983"]
[Result "1-0"]
[Round "04"]
[TimeControl "180+1"]
[Date "2022.11.16"]
[WhiteClock "0:00:18"]
[BlackClock "0:00:03"]

1. f4 {[%clk 0:03:00]}  c5 {[%clk 0:02:54]} 2. Nf3 {[%clk 0:03:00]}  g6 {[%clk 0:02:51]} 3. e3 {[%clk 0:03:00]}  Bg7 {[%clk 0:02:52]} 4. Be2 {[%clk 0:03:01]}  d6 {[%clk 0:02:51]} 5. O-O {[%clk 0:03:01]}  Nc6 {[%clk 0:02:51]} 6. d4 {[%clk 0:02:57]}  cxd4 {[%clk 0:02:44]} 7. exd4 {[%clk 0:02:58]}  Nf6 {[%clk 0:02:40]} 8. c4 {[%clk 0:02:45]}  O-O {[%clk 0:02:39]} 9. Nc3 {[%clk 0:02:43]}  Re8 {[%clk 0:02:16]} 10. d5 {[%clk 0:02:37]}  Nb8 {[%clk 0:02:14]} 11. Be3 {[%clk 0:02:36]}  e5 {[%clk 0:02:01]} 12. fxe5 {[%clk 0:02:23]}  dxe5 {[%clk 0:02:00]} 13. h3 {[%clk 0:02:12]}  Nh5 {[%clk 0:01:52]} 14. Ng5 {[%clk 0:01:58]}  Ng3 {[%clk 0:01:39]} 15. Nxf7 {[%clk 0:01:32]}  Qe7 {[%clk 0:01:07]} 16. d6 {[%clk 0:01:13]}  Qh4 {[%clk 0:00:36]} 17. Rf2 {[%clk 0:00:38]}  Nf5 {[%clk 0:00:26]} 18. Bg5 {[%clk 0:00:36]}  Qd4 {[%clk 0:00:26]} 19. Nb5 {[%clk 0:00:27]}  Qxd1+ {[%clk 0:00:14]} 20. Rxd1 {[%clk 0:00:28]}  Kxf7 {[%clk 0:00:06]} 21. Nc7 {[%clk 0:00:23]}  Nc6 {[%clk 0:00:05]} 22. g4 {[%clk 0:00:22]}  h6 {[%clk 0:00:05]} 23. Bc1 {[%clk 0:00:20]}  e4 {[%clk 0:00:05]} 24. gxf5 {[%clk 0:00:20]}  Bd4 {[%clk 0:00:05]} 25. Nxa8 {[%clk 0:00:19]}  gxf5 {[%clk 0:00:03]} 26. Nc7 {[%clk 0:00:19]}  Rg8+ {[%clk 0:00:03]} 27. Kf1 {[%clk 0:00:19]}  Bxf2 {[%clk 0:00:04]} 28. Kxf2 {[%clk 0:00:19]}  Ne5 {[%clk 0:00:04]} 29. Bf4 {[%clk 0:00:19]}  Nc6 {[%clk 0:00:02]} 30. d7 {[%clk 0:00:19]}  Bxd7 {[%clk 0:00:03]} 31. Rxd7+ {[%clk 0:00:19]}  Kf6 {[%clk 0:00:04]} 32. Bh5 {[%clk 0:00:18]}  Rf8 {[%clk 0:00:03]} 33. Rd6+ {[%clk 0:00:18]}  Ke7 {[%clk 0:00:03]} 34. Nd5# {[%clk 0:00:18]} 1-0


[Site "https://www.chess.com"]

[Event "Titled Tuesday Blitz November 15 Late 2022"]
[White "Guzman, Christopher"]
[Black "Gerbelli Neto, Eduardo"]
[WhiteFideId "6405096"]
[BlackFideId "2103281"]
[WhiteElo "2272"]
[BlackElo "2178"]
[Result "1-0"]
[Round "04"]
[TimeControl "180+1"]
[Date "2022.11.16"]
[WhiteClock "0:00:44"]
[BlackClock "0:00:03"]

1. e4 {[%clk 0:02:59]}  e5 {[%clk 0:02:59]} 2. Nf3 {[%clk 0:02:59]}  Nc6 {[%clk 0:02:59]} 3. Bb5 {[%clk 0:02:59]}  a6 {[%clk 0:02:59]} 4. Ba4 {[%clk 0:02:59]}  d6 {[%clk 0:03:00]} 5. c3 {[%clk 0:02:59]}  f5 {[%clk 0:02:59]} 6. exf5 {[%clk 0:02:56]}  Bxf5 {[%clk 0:03:00]} 7. d4 {[%clk 0:02:57]}  e4 {[%clk 0:02:59]} 8. Ng5 {[%clk 0:02:54]}  h6 {[%clk 0:02:45]} 9. Nh3 {[%clk 0:02:54]}  b5 {[%clk 0:02:37]} 10. Bb3 {[%clk 0:02:53]}  Nf6 {[%clk 0:02:38]} 11. Nf4 {[%clk 0:02:51]}  d5 {[%clk 0:02:35]} 12. Nd2 {[%clk 0:02:48]}  Na5 {[%clk 0:02:26]} 13. Nf1 {[%clk 0:02:48]}  Nxb3 {[%clk 0:02:27]} 14. axb3 {[%clk 0:02:47]}  Bd6 {[%clk 0:02:26]} 15. Ne3 {[%clk 0:02:43]}  Qd7 {[%clk 0:01:56]} 16. Nfxd5 {[%clk 0:02:35]}  O-O {[%clk 0:01:51]} 17. Nxf5 {[%clk 0:02:31]}  Qxf5 {[%clk 0:01:49]} 18. Nxf6+ {[%clk 0:02:32]}  Rxf6 {[%clk 0:01:46]} 19. Be3 {[%clk 0:02:33]}  Qg6 {[%clk 0:01:33]} 20. g3 {[%clk 0:02:32]}  Qf5 {[%clk 0:01:23]} 21. Qe2 {[%clk 0:02:31]}  c6 {[%clk 0:01:15]} 22. b4 {[%clk 0:02:29]}  Bc7 {[%clk 0:01:14]} 23. h3 {[%clk 0:02:25]}  Qd5 {[%clk 0:01:07]} 24. Qg4 {[%clk 0:02:18]}  h5 {[%clk 0:00:58]} 25. Qe2 {[%clk 0:02:15]}  g6 {[%clk 0:00:34]} 26. Kd2 {[%clk 0:02:12]}  Rf3 {[%clk 0:00:34]} 27. Kc2 {[%clk 0:02:10]}  a5 {[%clk 0:00:34]} 28. bxa5 {[%clk 0:02:10]}  Rxa5 {[%clk 0:00:32]} 29. Rxa5 {[%clk 0:02:09]}  Bxa5 {[%clk 0:00:33]} 30. Ra1 {[%clk 0:02:09]}  Bc7 {[%clk 0:00:24]} 31. Ra7 {[%clk 0:02:06]}  Bd6 {[%clk 0:00:17]} 32. b3 {[%clk 0:01:58]}  Qf5 {[%clk 0:00:17]} 33. Ra6 {[%clk 0:01:55]}  Qd5 {[%clk 0:00:16]} 34. g4 {[%clk 0:01:53]}  Bf4 {[%clk 0:00:14]} 35. Bxf4 {[%clk 0:01:50]}  Rxf4 {[%clk 0:00:15]} 36. Qe3 {[%clk 0:01:42]}  Rf3 {[%clk 0:00:15]} 37. Qh6 {[%clk 0:01:38]}  Rxf2+ {[%clk 0:00:09]} 38. Kc1 {[%clk 0:01:37]}  Rf1+ {[%clk 0:00:07]} 39. Kc2 {[%clk 0:01:23]}  Rf2+ {[%clk 0:00:07]} 40. Kc1 {[%clk 0:01:22]}  Rf1+ {[%clk 0:00:08]} 41. Kb2 {[%clk 0:01:22]}  Rf2+ {[%clk 0:00:08]} 42. Ka1 {[%clk 0:01:22]}  Rf1+ {[%clk 0:00:08]} 43. Ka2 {[%clk 0:01:22]}  Rf2+ {[%clk 0:00:08]} 44. Ka3 {[%clk 0:01:19]}  Qd6+ {[%clk 0:00:08]} 45. b4 {[%clk 0:01:19]}  Rf8 {[%clk 0:00:02]} 46. Ra7 {[%clk 0:01:19]}  Rf7 {[%clk 0:00:01]} 47. Ra8+ {[%clk 0:01:12]}  Rf8 {[%clk 0:00:02]} 48. Rxf8+ {[%clk 0:01:12]}  Qxf8 {[%clk 0:00:02]} 49. Qxg6+ {[%clk 0:01:12]}  Qg7 {[%clk 0:00:03]} 50. Qxe4 {[%clk 0:00:45]}  Qa7+ {[%clk 0:00:02]} 51. Kb2 {[%clk 0:00:45]}  hxg4 {[%clk 0:00:03]} 52. Qxg4+ {[%clk 0:00:43]}  Kf7 {[%clk 0:00:03]} 53. Qf3+ {[%clk 0:00:43]}  Ke6 {[%clk 0:00:03]} 54. Qxc6+ {[%clk 0:00:44]} 1-0


[Site "https://www.chess.com"]

[Event "Titled Tuesday Blitz November 15 Late 2022"]
[White "Hansen, Sune Berg"]
[Black "Radovanovic, Dusan"]
[WhiteFideId "1400266"]
[BlackFideId "926868"]
[WhiteElo "2734"]
[BlackElo "2341"]
[Result "1-0"]
[Round "04"]
[TimeControl "180+1"]
[Date "2022.11.16"]
[WhiteClock "0:01:03"]
[BlackClock "0:00:34"]

1. e4 {[%clk 0:02:56]}  c5 {[%clk 0:02:59]} 2. Nf3 {[%clk 0:02:56]}  d6 {[%clk 0:03:00]} 3. g3 {[%clk 0:02:56]}  Nc6 {[%clk 0:02:57]} 4. Bg2 {[%clk 0:02:56]}  Nf6 {[%clk 0:02:57]} 5. d3 {[%clk 0:02:55]}  g6 {[%clk 0:02:57]} 6. O-O {[%clk 0:02:55]}  Bg7 {[%clk 0:02:57]} 7. Re1 {[%clk 0:02:55]}  O-O {[%clk 0:02:57]} 8. c3 {[%clk 0:02:55]}  Bg4 {[%clk 0:02:50]} 9. h3 {[%clk 0:02:53]}  Bxf3 {[%clk 0:02:49]} 10. Qxf3 {[%clk 0:02:54]}  Nd7 {[%clk 0:02:47]} 11. a4 {[%clk 0:02:46]}  a6 {[%clk 0:02:46]} 12. Qe2 {[%clk 0:02:43]}  Qc7 {[%clk 0:02:37]} 13. Nd2 {[%clk 0:02:36]}  b5 {[%clk 0:02:37]} 14. Nf3 {[%clk 0:02:29]}  b4 {[%clk 0:02:33]} 15. Qc2 {[%clk 0:02:25]}  Rab8 {[%clk 0:02:27]} 16. Bg5 {[%clk 0:02:20]}  h6 {[%clk 0:02:23]} 17. Be3 {[%clk 0:02:19]}  Rfc8 {[%clk 0:02:20]} 18. Qd2 {[%clk 0:02:09]}  Kh7 {[%clk 0:02:19]} 19. d4 {[%clk 0:02:09]}  bxc3 {[%clk 0:02:12]} 20. bxc3 {[%clk 0:02:09]}  Qa5 {[%clk 0:02:07]} 21. Red1 {[%clk 0:01:20]}  Rb3 {[%clk 0:01:53]} 22. Rac1 {[%clk 0:01:18]}  Rcb8 {[%clk 0:01:52]} 23. e5 {[%clk 0:01:16]}  Rb2 {[%clk 0:00:52]} 24. Qd3 {[%clk 0:01:08]}  cxd4 {[%clk 0:00:42]} 25. cxd4 {[%clk 0:01:08]}  Qxa4 {[%clk 0:00:34]} 26. Rxc6 {[%clk 0:01:03]} 1-0


[Site "https://www.chess.com"]